[Event "Early-Titled-Tuesday-Blitz-February-20-2024"]
[Site "Chess.com"]
[Date "2024.02.20"]
[Round "1"]
[White "biostatistician"]
[Black "Louis-Paulsen-Fan"]
[Result "1-0"]
[WhiteElo "2591"]
[BlackElo "2199"]
[TimeControl "180+1"]
[EndTime "8:05:58 PST"]
[Termination "biostatistician won by resignation"]

1. d4 {[%clk 0:02:47.8]} 1... d5 {[%clk 0:02:59.5]} 2. Nf3 {[%clk 0:02:48.7]}
2... e6 {[%clk 0:02:59.8]} 3. c4 {[%clk 0:02:48.9]} 3... c5 {[%clk 0:02:59.8]}
4. cxd5 {[%clk 0:02:49]} 4... exd5 {[%clk 0:03:00.7]} 5. Nc3 {[%clk 0:02:49.3]}
5... Nc6 {[%clk 0:02:58.1]} 6. Bg5 {[%clk 0:02:47.7]} 6... Be7 {[%clk
0:02:57.6]} 7. Bxe7 {[%clk 0:02:48]} 7... Ngxe7 {[%clk 0:02:58.2]} 8. e3 {[%clk
0:02:48.2]} 8... c4 {[%clk 0:02:52.4]} 9. g3 {[%clk 0:02:47.4]} 9... O-O {[%clk
0:02:50]} 10. Bg2 {[%clk 0:02:47.8]} 10... Rb8 {[%clk 0:02:46]} 11. O-O {[%clk
0:02:47.9]} 11... Bf5 {[%clk 0:02:43.7]} 12. Re1 {[%clk 0:02:44]} 12... Bd3
{[%clk 0:02:30.3]} 13. Rc1 {[%clk 0:01:49]} 13... b5 {[%clk 0:02:25.9]} 14. e4
{[%clk 0:01:48.9]} 14... dxe4 {[%clk 0:02:17.4]} 15. Nxe4 {[%clk 0:01:49.8]}
15... Nxd4 {[%clk 0:02:13.1]} 16. Ne5 {[%clk 0:01:30.1]} 16... Ng6 {[%clk
0:02:01.5]} 17. Nxd3 {[%clk 0:01:25.4]} 17... cxd3 {[%clk 0:01:55.3]} 18. Qxd3
{[%clk 0:01:26.3]} 18... Ne5 {[%clk 0:01:44.6]} 19. Qe3 {[%clk 0:01:18.9]} 19...
Qb6 {[%clk 0:01:31.2]} 20. Kh1 {[%clk 0:01:07]} 20... Rfe8 {[%clk 0:01:17.8]}
21. Nc3 {[%clk 0:01:02.1]} 21... a6 {[%clk 0:00:25.1]} 22. Nd5 {[%clk
0:01:01.8]} 22... Qa7 {[%clk 0:00:25.4]} 23. Rc7 {[%clk 0:00:59.2]} 1-0

[Event "Early-Titled-Tuesday-Blitz-February-20-2024"]
[Site "Chess.com"]
[Date "2024.02.20"]
[Round "1"]
[White "FairChess_on_YouTube"]
[Black "malakismayil"]
[Result "1-0"]
[WhiteElo "3069"]
[BlackElo "2534"]
[TimeControl "180+1"]
[EndTime "8:05:59 PST"]
[Termination "FairChess_on_YouTube won on time"]

1. d4 {[%clk 0:03:00.9]} 1... d5 {[%clk 0:02:58]} 2. c4 {[%clk 0:03:00.9]} 2...
e6 {[%clk 0:02:57.9]} 3. Nf3 {[%clk 0:03:01.2]} 3... Nf6 {[%clk 0:02:57.9]} 4.
Bg5 {[%clk 0:03:00.8]} 4... Be7 {[%clk 0:02:58]} 5. e3 {[%clk 0:03:00.6]} 5...
O-O {[%clk 0:02:57.8]} 6. Qc2 {[%clk 0:02:58.6]} 6... h6 {[%clk 0:02:57.9]} 7.
Bxf6 {[%clk 0:02:58.3]} 7... Bxf6 {[%clk 0:02:58]} 8. h4 {[%clk 0:02:58.9]} 8...
c5 {[%clk 0:02:53]} 9. g4 {[%clk 0:02:58.7]} 9... Be7 {[%clk 0:02:47.7]} 10. g5
{[%clk 0:02:56.8]} 10... h5 {[%clk 0:02:47.5]} 11. Nc3 {[%clk 0:02:50]} 11...
cxd4 {[%clk 0:02:43.8]} 12. exd4 {[%clk 0:02:49.7]} 12... Nc6 {[%clk 0:02:44.1]}
13. O-O-O {[%clk 0:02:49.2]} 13... g6 {[%clk 0:02:37.1]} 14. Kb1 {[%clk
0:02:47.9]} 14... Bd7 {[%clk 0:02:32.1]} 15. Ne5 {[%clk 0:02:19.4]} 15... Nxe5
{[%clk 0:01:49.9]} 16. dxe5 {[%clk 0:02:20.3]} 16... Qc7 {[%clk 0:01:46.1]} 17.
cxd5 {[%clk 0:02:15.2]} 17... Qxe5 {[%clk 0:01:45.3]} 18. Bc4 {[%clk 0:02:15]}
18... Rac8 {[%clk 0:00:22]} 19. Rhe1 {[%clk 0:02:10]} 19... Qf5 {[%clk
0:00:12.1]} 20. Qxf5 {[%clk 0:02:00.3]} 20... gxf5 {[%clk 0:00:13]} 21. dxe6
{[%clk 0:02:00.4]} 21... Bxe6 {[%clk 0:00:10.5]} 22. Rxe6 {[%clk 0:01:55.2]}
22... fxe6 {[%clk 0:00:11.4]} 23. Bxe6+ {[%clk 0:01:55.5]} 23... Kg7 {[%clk
0:00:09.8]} 24. Bxc8 {[%clk 0:01:55.9]} 24... Rxc8 {[%clk 0:00:10.4]} 25. Rd7
{[%clk 0:01:56.5]} 25... Kf7 {[%clk 0:00:09.7]} 26. Rxb7 {[%clk 0:01:54.2]}
26... Ke6 {[%clk 0:00:08.1]} 27. Rxa7 {[%clk 0:01:53.7]} 27... Bc5 {[%clk
0:00:08.4]} 28. Ra6+ {[%clk 0:01:54.2]} 28... Ke5 {[%clk 0:00:08.7]} 29. Ra5
{[%clk 0:01:40.2]} 29... Kf4 {[%clk 0:00:07]} 30. g6 {[%clk 0:01:36.9]} 30...
Bxf2 {[%clk 0:00:05.4]} 31. Nd5+ {[%clk 0:01:37.3]} 31... Kf3 {[%clk 0:00:03.4]}
32. Ne7 {[%clk 0:01:36.6]} 32... Re8 {[%clk 0:00:03]} 33. Rxf5+ {[%clk
0:01:35.3]} 33... Kg3 {[%clk 0:00:02.5]} 34. g7 {[%clk 0:01:34.9]} 1-0

[Event "Early-Titled-Tuesday-Blitz-February-20-2024"]
[Site "Chess.com"]
[Date "2024.02.20"]
[Round "1"]
[White "Skatchkov_V"]
[Black "Jamal-Jamal-Jamal"]
[Result "1-0"]
[WhiteElo "2616"]
[BlackElo "2261"]
[TimeControl "180+1"]
[EndTime "8:06:02 PST"]
[Termination "Skatchkov_V won on time"]

1. d4 {[%clk 0:02:57.6]} 1... f5 {[%clk 0:02:58.7]} 2. c4 {[%clk 0:02:52.4]}
2... e6 {[%clk 0:02:58.6]} 3. g3 {[%clk 0:02:52.9]} 3... Nf6 {[%clk 0:02:59.1]}
4. Bg2 {[%clk 0:02:53.1]} 4... Be7 {[%clk 0:02:59.8]} 5. Nh3 {[%clk 0:02:53.2]}
5... O-O {[%clk 0:02:59.3]} 6. O-O {[%clk 0:02:53.8]} 6... d6 {[%clk 0:02:59.8]}
7. Nc3 {[%clk 0:02:41.8]} 7... c6 {[%clk 0:02:59.9]} 8. e4 {[%clk 0:02:32]} 8...
Nxe4 {[%clk 0:02:40.8]} 9. Nxe4 {[%clk 0:02:31.9]} 9... fxe4 {[%clk 0:02:40.3]}
10. Bxe4 {[%clk 0:02:32.8]} 10... Qe8 {[%clk 0:02:20.4]} 11. Qd3 {[%clk
0:02:15.6]} 11... e5 {[%clk 0:01:47]} 12. Bxh7+ {[%clk 0:02:13.4]} 12... Kh8
{[%clk 0:01:47.1]} 13. Bg6 {[%clk 0:02:14.1]} 13... Qd8 {[%clk 0:01:16.6]} 14.
Qe2 {[%clk 0:02:13.8]} 14... Rf5 {[%clk 0:00:50]} 15. Bxf5 {[%clk 0:02:13.4]}
15... Bxf5 {[%clk 0:00:50.5]} 16. Qh5+ {[%clk 0:02:14.3]} 16... Bh7 {[%clk
0:00:50.2]} 17. Ng5 {[%clk 0:02:15.1]} 17... Bxg5 {[%clk 0:00:50.2]} 18. Bxg5
{[%clk 0:02:16]} 18... Qf8 {[%clk 0:00:42.1]} 19. dxe5 {[%clk 0:02:16.2]} 19...
dxe5 {[%clk 0:00:41.8]} 20. Rad1 {[%clk 0:02:09.4]} 20... Na6 {[%clk 0:00:38.2]}
21. Rfe1 {[%clk 0:02:04.3]} 21... Re8 {[%clk 0:00:27.8]} 22. Qxe8 {[%clk
0:02:04]} 22... Qxe8 {[%clk 0:00:26.2]} 23. Rd8 {[%clk 0:02:04.6]} 23... Qxd8
{[%clk 0:00:23.8]} 24. Bxd8 {[%clk 0:02:05.5]} 24... e4 {[%clk 0:00:24.3]} 25.
Rd1 {[%clk 0:02:02]} 25... Bg6 {[%clk 0:00:21]} 26. Rd7 {[%clk 0:02:01.1]} 26...
Nc5 {[%clk 0:00:20.8]} 27. Re7 {[%clk 0:01:58.9]} 27... Nd3 {[%clk 0:00:19.5]}
28. Bc7 {[%clk 0:01:57.3]} 28... b6 {[%clk 0:00:17.4]} 29. b3 {[%clk 0:01:54.4]}
29... b5 {[%clk 0:00:15.7]} 30. c5 {[%clk 0:01:53]} 30... a6 {[%clk 0:00:15]}
31. Bd6 {[%clk 0:01:53.2]} 31... a5 {[%clk 0:00:14.2]} 32. Ra7 {[%clk
0:01:52.5]} 32... a4 {[%clk 0:00:13.5]} 33. bxa4 {[%clk 0:01:53.4]} 33... bxa4
{[%clk 0:00:14]} 34. Rxa4 {[%clk 0:01:54.3]} 34... Kh7 {[%clk 0:00:12.9]} 35.
Ra7 {[%clk 0:01:49.9]} 35... Kh6 {[%clk 0:00:12.4]} 36. a4 {[%clk 0:01:49.4]}
36... Ne1 {[%clk 0:00:03.5]} 37. a5 {[%clk 0:01:47.8]} 37... Nf3+ {[%clk
0:00:02.8]} 38. Kg2 {[%clk 0:01:47.9]} 38... Ne1+ {[%clk 0:00:02.7]} 39. Kf1
{[%clk 0:01:48]} 39... Nc2 {[%clk 0:00:02.2]} 40. a6 {[%clk 0:01:47.4]} 40... e3
{[%clk 0:00:02.8]} 41. Bf4+ {[%clk 0:01:47.1]} 41... Kh5 {[%clk 0:00:02.1]} 42.
fxe3 {[%clk 0:01:46.9]} 1-0

[Event "Early-Titled-Tuesday-Blitz-February-20-2024"]
[Site "Chess.com"]
[Date "2024.02.20"]
[Round "1"]
[White "zurzan"]
[Black "Goffredo_Fofi"]
[Result "0-1"]
[WhiteElo "2058"]
[BlackElo "2553"]
[TimeControl "180+1"]
[EndTime "8:06:04 PST"]
[Termination "Goffredo_Fofi won by resignation"]

1. c4 {[%clk 0:02:59.8]} 1... g6 {[%clk 0:03:00.9]} 2. Nc3 {[%clk 0:02:55.7]}
2... Bg7 {[%clk 0:03:01.5]} 3. g3 {[%clk 0:02:54.4]} 3... Nf6 {[%clk 0:02:58]}
4. Bg2 {[%clk 0:02:54.4]} 4... O-O {[%clk 0:02:56.3]} 5. d3 {[%clk 0:02:54.5]}
5... c6 {[%clk 0:02:56.3]} 6. e4 {[%clk 0:02:54]} 6... d6 {[%clk 0:02:55.4]} 7.
Nge2 {[%clk 0:02:53.7]} 7... a6 {[%clk 0:02:55.8]} 8. h3 {[%clk 0:02:53]} 8...
b5 {[%clk 0:02:53.4]} 9. c5 {[%clk 0:02:43]} 9... dxc5 {[%clk 0:02:44]} 10. O-O
{[%clk 0:02:38.5]} 10... Nbd7 {[%clk 0:02:26.7]} 11. f4 {[%clk 0:02:35]} 11...
Nb6 {[%clk 0:02:26.3]} 12. Be3 {[%clk 0:02:31.7]} 12... Nfd7 {[%clk 0:02:26.2]}
13. e5 {[%clk 0:02:28.7]} 13... Bb7 {[%clk 0:02:26.2]} 14. a4 {[%clk 0:02:24.2]}
14... Nd5 {[%clk 0:01:55.9]} 15. Bf2 {[%clk 0:02:15.3]} 15... e6 {[%clk
0:01:47.3]} 16. Ne4 {[%clk 0:02:13.4]} 16... Qe7 {[%clk 0:01:40.8]} 17. Nd6
{[%clk 0:02:11.6]} 17... Rab8 {[%clk 0:01:41]} 18. Nc3 {[%clk 0:01:54.1]} 18...
Ba8 {[%clk 0:01:34]} 19. Nce4 {[%clk 0:01:52.9]} 19... f6 {[%clk 0:01:23.9]} 20.
Nxc5 {[%clk 0:01:50.8]} 20... fxe5 {[%clk 0:01:23.2]} 21. Nxd7 {[%clk
0:01:49.4]} 21... Qxd7 {[%clk 0:01:22.5]} 22. fxe5 {[%clk 0:01:44.9]} 22... Bxe5
{[%clk 0:01:22]} 23. Bc5 {[%clk 0:01:39.3]} 23... Bxd6 {[%clk 0:01:19.1]} 24.
Rxf8+ {[%clk 0:01:38.5]} 24... Bxf8 {[%clk 0:01:16.8]} 25. Bd4 {[%clk
0:01:34.6]} 25... c5 {[%clk 0:01:13.6]} 26. Be5 {[%clk 0:01:33.6]} 26... Bd6
{[%clk 0:01:13.4]} 27. Bxd6 {[%clk 0:01:28.4]} 27... Qxd6 {[%clk 0:01:13.5]} 28.
axb5 {[%clk 0:01:29.2]} 28... axb5 {[%clk 0:01:13.9]} 29. Qe1 {[%clk 0:01:20.4]}
29... Nc7 {[%clk 0:00:53]} 30. Bxa8 {[%clk 0:01:15.2]} 30... Rxa8 {[%clk
0:00:53.9]} 31. Rxa8+ {[%clk 0:01:13.6]} 31... Nxa8 {[%clk 0:00:54.8]} 32. Qe4
{[%clk 0:01:12.3]} 32... Qd4+ {[%clk 0:00:54.3]} 33. Kg2 {[%clk 0:01:11.1]}
33... Qxe4+ {[%clk 0:00:53.9]} 34. dxe4 {[%clk 0:01:12]} 34... Nb6 {[%clk
0:00:53.6]} 35. Kf3 {[%clk 0:01:12.8]} 35... Nc4 {[%clk 0:00:52.5]} 36. b3
{[%clk 0:01:12.8]} 36... Nd2+ {[%clk 0:00:52.8]} 37. Kf4 {[%clk 0:01:13.2]}
37... Nxb3 {[%clk 0:00:53.7]} 38. Ke5 {[%clk 0:01:13.9]} 38... c4 {[%clk
0:00:53.4]} 39. Kxe6 {[%clk 0:01:14.3]} 39... c3 {[%clk 0:00:53.9]} 40. Kd7
{[%clk 0:01:14.8]} 40... c2 {[%clk 0:00:54.8]} 41. e5 {[%clk 0:01:15.1]} 41...
c1=Q {[%clk 0:00:55.7]} 42. e6 {[%clk 0:01:15.7]} 42... Qd2+ {[%clk 0:00:54]}
43. Ke8 {[%clk 0:01:15.9]} 43... Nc5 {[%clk 0:00:52.3]} 44. Ke7 {[%clk
0:01:14.3]} 44... Qd5 {[%clk 0:00:51.1]} 0-1

[Event "Early-Titled-Tuesday-Blitz-February-20-2024"]
[Site "Chess.com"]
[Date "2024.02.20"]
[Round "1"]
[White "vi_pranav"]
[Black "Pingah9"]
[Result "1-0"]
[WhiteElo "3051"]
[BlackElo "2530"]
[TimeControl "180+1"]
[EndTime "8:06:06 PST"]
[Termination "vi_pranav won by resignation"]

1. e4 {[%clk 0:03:00.9]} 1... g6 {[%clk 0:02:56.9]} 2. d4 {[%clk 0:03:00.8]}
2... Bg7 {[%clk 0:02:57.2]} 3. Nf3 {[%clk 0:03:00.8]} 3... d6 {[%clk 0:02:57.5]}
4. Bc4 {[%clk 0:03:00.7]} 4... e6 {[%clk 0:02:57.5]} 5. O-O {[%clk 0:02:59.4]}
5... a6 {[%clk 0:02:55.8]} 6. a4 {[%clk 0:02:59.6]} 6... b6 {[%clk 0:02:53.8]}
7. Re1 {[%clk 0:02:57.8]} 7... Ne7 {[%clk 0:02:53.7]} 8. Nbd2 {[%clk 0:02:53.8]}
8... O-O {[%clk 0:02:52.8]} 9. Nf1 {[%clk 0:02:54]} 9... h6 {[%clk 0:02:52]} 10.
Ng3 {[%clk 0:02:54]} 10... Bb7 {[%clk 0:02:52.2]} 11. c3 {[%clk 0:02:54.1]}
11... Nd7 {[%clk 0:02:45.9]} 12. h3 {[%clk 0:02:51]} 12... Kh7 {[%clk
0:02:42.3]} 13. Bd3 {[%clk 0:02:50.3]} 13... e5 {[%clk 0:02:36.2]} 14. dxe5
{[%clk 0:02:48.2]} 14... Nxe5 {[%clk 0:02:30]} 15. Nxe5 {[%clk 0:02:48.2]} 15...
Bxe5 {[%clk 0:02:29.1]} 16. f4 {[%clk 0:02:39.9]} 16... Bg7 {[%clk 0:02:29.1]}
17. Bc2 {[%clk 0:02:39]} 17... Nc6 {[%clk 0:02:11.9]} 18. Be3 {[%clk 0:02:31.6]}
18... Qh4 {[%clk 0:02:06.8]} 19. Qf3 {[%clk 0:02:24.5]} 19... Rae8 {[%clk
0:02:03]} 20. Rad1 {[%clk 0:02:17.4]} 20... Kg8 {[%clk 0:01:53.2]} 21. Bf2
{[%clk 0:02:14.7]} 21... Qf6 {[%clk 0:01:48.8]} 22. Nf1 {[%clk 0:02:13.6]} 22...
b5 {[%clk 0:01:45.7]} 23. axb5 {[%clk 0:02:13.3]} 23... axb5 {[%clk 0:01:46.6]}
24. Ne3 {[%clk 0:02:12.8]} 24... Na5 {[%clk 0:01:35.7]} 25. Bd3 {[%clk
0:01:51.8]} 25... Rb8 {[%clk 0:01:16.8]} 26. Qg3 {[%clk 0:01:41.4]} 26... Bc6
{[%clk 0:01:04.2]} 27. Ng4 {[%clk 0:01:31.5]} 27... Qe7 {[%clk 0:01:04.1]} 28.
f5 {[%clk 0:01:24.4]} 28... h5 {[%clk 0:01:02.6]} 29. f6 {[%clk 0:01:24.6]}
29... Bxf6 {[%clk 0:00:56.8]} 30. Nxf6+ {[%clk 0:01:25.5]} 30... Qxf6 {[%clk
0:00:56.9]} 31. Bd4 {[%clk 0:01:26.4]} 31... Qe6 {[%clk 0:00:37]} 32. Rf1 {[%clk
0:01:26.3]} 32... Kh7 {[%clk 0:00:21.3]} 33. Rf6 {[%clk 0:01:23.5]} 33... Qb3
{[%clk 0:00:21.3]} 34. Rdf1 {[%clk 0:01:22.4]} 34... Nc4 {[%clk 0:00:16.7]} 35.
Rxf7+ {[%clk 0:01:22.1]} 35... Rxf7 {[%clk 0:00:16.3]} 36. Rxf7+ {[%clk
0:01:23]} 1-0

[Event "Early-Titled-Tuesday-Blitz-February-20-2024"]
[Site "Chess.com"]
[Date "2024.02.20"]
[Round "1"]
[White "ajeale2"]
[Black "Sanan_Sjugirov"]
[Result "0-1"]
[WhiteElo "2504"]
[BlackElo "2905"]
[TimeControl "180+1"]
[EndTime "8:06:06 PST"]
[Termination "Sanan_Sjugirov won on time"]

1. d4 {[%clk 0:02:54.2]} 1... Nf6 {[%clk 0:02:51.6]} 2. Bf4 {[%clk 0:02:54.3]}
2... d5 {[%clk 0:02:50.2]} 3. e3 {[%clk 0:02:54.5]} 3... c5 {[%clk 0:02:50.8]}
4. c3 {[%clk 0:02:54]} 4... Nc6 {[%clk 0:02:51.4]} 5. Nd2 {[%clk 0:02:54.2]}
5... Bf5 {[%clk 0:02:51.6]} 6. Ngf3 {[%clk 0:02:54.3]} 6... e6 {[%clk
0:02:50.3]} 7. Qb3 {[%clk 0:02:46]} 7... Qc8 {[%clk 0:02:46]} 8. c4 {[%clk
0:02:41.1]} 8... cxd4 {[%clk 0:02:44.7]} 9. exd4 {[%clk 0:02:38.2]} 9... dxc4
{[%clk 0:02:42.2]} 10. Nxc4 {[%clk 0:02:29.8]} 10... Bb4+ {[%clk 0:02:29.9]} 11.
Bd2 {[%clk 0:01:54.8]} 11... Be7 {[%clk 0:02:24.4]} 12. Rc1 {[%clk 0:01:51.3]}
12... O-O {[%clk 0:02:22.8]} 13. Nce5 {[%clk 0:01:48.9]} 13... Be4 {[%clk
0:02:20.1]} 14. Nxc6 {[%clk 0:01:32.6]} 14... bxc6 {[%clk 0:02:10.6]} 15. Bd3
{[%clk 0:00:43.2]} 15... Rb8 {[%clk 0:02:06.9]} 16. Qc2 {[%clk 0:00:40.2]} 16...
Bxd3 {[%clk 0:02:00.2]} 17. Qxd3 {[%clk 0:00:40.4]} 17... Rxb2 {[%clk
0:02:00.8]} 18. Ne5 {[%clk 0:00:40.6]} 18... c5 {[%clk 0:01:52.1]} 19. O-O
{[%clk 0:00:34.5]} 19... Rd8 {[%clk 0:01:46.2]} 20. Qc3 {[%clk 0:00:23.3]} 20...
Rxa2 {[%clk 0:01:37.7]} 21. Be3 {[%clk 0:00:23.8]} 21... Nd5 {[%clk 0:01:31.7]}
22. Qb3 {[%clk 0:00:17.5]} 22... Qa6 {[%clk 0:01:23.8]} 23. dxc5 {[%clk
0:00:13.7]} 23... Ra3 {[%clk 0:01:24.3]} 24. Qc2 {[%clk 0:00:10.6]} 24... Rc8
{[%clk 0:01:20.6]} 25. c6 {[%clk 0:00:09.9]} 25... Bd6 {[%clk 0:01:16.5]} 26.
Nc4 {[%clk 0:00:08.6]} 26... Rxc6 {[%clk 0:01:15.8]} 27. Qb2 {[%clk 0:00:06.3]}
27... Rxc4 {[%clk 0:01:12.7]} 28. Rxc4 {[%clk 0:00:06.1]} 28... Qxc4 {[%clk
0:01:13.6]} 29. Rc1 {[%clk 0:00:04.8]} 29... Rc3 {[%clk 0:01:12.7]} 0-1

[Event "Early-Titled-Tuesday-Blitz-February-20-2024"]
[Site "Chess.com"]
[Date "2024.02.20"]
[Round "1"]
[White "Capablanca_Oujda_2021"]
[Black "lachesisQ"]
[Result "0-1"]
[WhiteElo "2528"]
[BlackElo "3048"]
[TimeControl "180+1"]
[EndTime "8:06:08 PST"]
[Termination "lachesisQ won on time"]

1. b3 {[%clk 0:03:00.9]} 1... d5 {[%clk 0:02:55.8]} 2. Bb2 {[%clk 0:03:00.4]}
2... Bg4 {[%clk 0:02:53.5]} 3. Nf3 {[%clk 0:02:58.6]} 3... e6 {[%clk 0:02:52.7]}
4. g3 {[%clk 0:02:58.6]} 4... Bxf3 {[%clk 0:02:50.9]} 5. exf3 {[%clk 0:02:58]}
5... Nf6 {[%clk 0:02:51.8]} 6. Bg2 {[%clk 0:02:58]} 6... Nbd7 {[%clk 0:02:51.7]}
7. O-O {[%clk 0:02:57.8]} 7... a5 {[%clk 0:02:51.5]} 8. a4 {[%clk 0:02:56.6]}
8... g6 {[%clk 0:02:51.4]} 9. d3 {[%clk 0:02:56.2]} 9... Bg7 {[%clk 0:02:51.6]}
10. Nd2 {[%clk 0:02:56]} 10... O-O {[%clk 0:02:51.9]} 11. f4 {[%clk 0:02:53.2]}
11... c6 {[%clk 0:02:52.1]} 12. Nf3 {[%clk 0:02:46]} 12... b5 {[%clk 0:02:51.9]}
13. Ne5 {[%clk 0:02:43.1]} 13... Qc7 {[%clk 0:02:50.3]} 14. c4 {[%clk
0:02:31.5]} 14... bxc4 {[%clk 0:02:46.1]} 15. bxc4 {[%clk 0:02:25.1]} 15... Rfb8
{[%clk 0:02:45.5]} 16. Nxd7 {[%clk 0:02:10.8]} 16... Nxd7 {[%clk 0:02:44.1]} 17.
Bxg7 {[%clk 0:02:10.5]} 17... Kxg7 {[%clk 0:02:45]} 18. cxd5 {[%clk 0:01:56.1]}
18... cxd5 {[%clk 0:02:44.5]} 19. Qd2 {[%clk 0:01:38.2]} 19... Rb4 {[%clk
0:02:43.7]} 20. Rfc1 {[%clk 0:01:36.1]} 20... Qb6 {[%clk 0:02:43.6]} 21. Qc3+
{[%clk 0:01:23.6]} 21... Qd4 {[%clk 0:02:40.1]} 22. Qxd4+ {[%clk 0:01:21.2]}
22... Rxd4 {[%clk 0:02:41]} 23. Rc7 {[%clk 0:01:13.4]} 23... Nb6 {[%clk
0:02:36.1]} 24. Bf1 {[%clk 0:01:11.6]} 24... Nxa4 {[%clk 0:02:34.2]} 25. Rb1
{[%clk 0:01:05.1]} 25... Rb4 {[%clk 0:02:27.3]} 26. Rxb4 {[%clk 0:00:48.9]}
26... axb4 {[%clk 0:02:28.2]} 27. Rb7 {[%clk 0:00:49]} 27... Nc3 {[%clk
0:02:27.9]} 28. Rxb4 {[%clk 0:00:46.5]} 28... Ra2 {[%clk 0:02:28]} 29. Rb3
{[%clk 0:00:23.9]} 29... Nd1 {[%clk 0:02:26.3]} 30. f3 {[%clk 0:00:22.5]} 30...
Ne3 {[%clk 0:02:25.8]} 31. Bh3 {[%clk 0:00:20.6]} 31... Rd2 {[%clk 0:02:20.4]}
32. g4 {[%clk 0:00:19]} 32... Nc2 {[%clk 0:02:15.6]} 33. f5 {[%clk 0:00:14.2]}
33... Nd4 {[%clk 0:02:15.3]} 34. Ra3 {[%clk 0:00:08.7]} 34... Nxf3+ {[%clk
0:02:15]} 35. Kf1 {[%clk 0:00:08.3]} 35... Nxh2+ {[%clk 0:02:15.4]} 36. Ke1
{[%clk 0:00:08.4]} 36... Nf3+ {[%clk 0:02:16.3]} 37. Kf1 {[%clk 0:00:07.9]}
37... exf5 {[%clk 0:02:06.5]} 38. gxf5 {[%clk 0:00:07.8]} 38... Ne5 {[%clk
0:02:04.6]} 39. fxg6 {[%clk 0:00:06.3]} 39... hxg6 {[%clk 0:02:04.4]} 40. Bg2
{[%clk 0:00:06.1]} 40... Rxd3 {[%clk 0:01:59.8]} 41. Ra5 {[%clk 0:00:04.4]}
41... Nc4 {[%clk 0:01:58.6]} 42. Rc5 {[%clk 0:00:02.5]} 42... Rd1+ {[%clk
0:01:46.9]} 43. Ke2 {[%clk 0:00:02.3]} 43... Rd2+ {[%clk 0:01:47.8]} 44. Kf1
{[%clk 0:00:02.1]} 44... Ne3+ {[%clk 0:01:47.6]} 0-1

[Event "Early-Titled-Tuesday-Blitz-February-20-2024"]
[Site "Chess.com"]
[Date "2024.02.20"]
[Round "1"]
[White "KnightmareJoker"]
[Black "Natalya_Buksa"]
[Result "0-1"]
[WhiteElo "2165"]
[BlackElo "2577"]
[TimeControl "180+1"]
[EndTime "8:06:08 PST"]
[Termination "Natalya_Buksa won by resignation"]

1. e4 {[%clk 0:03:00.9]} 1... c5 {[%clk 0:02:59.8]} 2. Nf3 {[%clk 0:03:01.5]}
2... Nc6 {[%clk 0:03:00.4]} 3. d4 {[%clk 0:03:00.8]} 3... cxd4 {[%clk
0:03:00.9]} 4. Nxd4 {[%clk 0:03:01.7]} 4... e5 {[%clk 0:03:01.8]} 5. Nb5 {[%clk
0:03:00.3]} 5... d6 {[%clk 0:03:02.1]} 6. N1c3 {[%clk 0:02:59.7]} 6... a6 {[%clk
0:03:02.5]} 7. Na3 {[%clk 0:03:00.2]} 7... b5 {[%clk 0:03:03.1]} 8. Nd5 {[%clk
0:03:00.9]} 8... Be7 {[%clk 0:03:03.4]} 9. c3 {[%clk 0:02:57.9]} 9... Be6 {[%clk
0:03:00.6]} 10. Nc2 {[%clk 0:02:54.5]} 10... Nf6 {[%clk 0:03:00.3]} 11. Bg5
{[%clk 0:02:34.9]} 11... Nxd5 {[%clk 0:02:59.8]} 12. exd5 {[%clk 0:02:34.1]}
12... Bxg5 {[%clk 0:02:58.2]} 13. dxc6 {[%clk 0:02:26.5]} 13... O-O {[%clk
0:02:57.8]} 14. Be2 {[%clk 0:02:23]} 14... d5 {[%clk 0:02:55.5]} 15. O-O {[%clk
0:02:11.9]} 15... Qd6 {[%clk 0:02:54.1]} 16. a4 {[%clk 0:02:03]} 16... Qxc6
{[%clk 0:02:52.1]} 17. Nb4 {[%clk 0:02:03.4]} 17... Qb7 {[%clk 0:02:45.6]} 18.
Bf3 {[%clk 0:01:59.7]} 18... e4 {[%clk 0:02:45.6]} 19. Bg4 {[%clk 0:01:57.1]}
19... f5 {[%clk 0:02:43.2]} 20. Be2 {[%clk 0:01:56.8]} 20... Bf6 {[%clk
0:02:41.4]} 21. axb5 {[%clk 0:01:51.8]} 21... axb5 {[%clk 0:02:42.3]} 22. Nc2
{[%clk 0:01:51.7]} 22... Rxa1 {[%clk 0:02:33.6]} 23. Nxa1 {[%clk 0:01:52]} 23...
Ra8 {[%clk 0:02:34.3]} 24. Nb3 {[%clk 0:01:52.4]} 24... Qb6 {[%clk 0:02:28.5]}
25. Qd2 {[%clk 0:01:37.1]} 25... b4 {[%clk 0:02:14.6]} 26. cxb4 {[%clk
0:01:34.3]} 26... d4 {[%clk 0:02:14.5]} 27. Nc5 {[%clk 0:01:34.4]} 27... Bf7
{[%clk 0:02:11.9]} 28. b3 {[%clk 0:01:31.9]} 28... d3 {[%clk 0:02:09.5]} 29. Bd1
{[%clk 0:01:29.5]} 29... Bd4 {[%clk 0:01:57.9]} 30. Na4 {[%clk 0:01:17.7]} 30...
Qf6 {[%clk 0:01:53.6]} 31. Kh1 {[%clk 0:01:12.3]} 31... f4 {[%clk 0:01:49.8]}
32. f3 {[%clk 0:01:11.2]} 32... Be3 {[%clk 0:01:45.7]} 33. Qc3 {[%clk
0:01:03.6]} 33... Qxc3 {[%clk 0:01:39.2]} 34. Nxc3 {[%clk 0:01:04.5]} 34... exf3
{[%clk 0:01:39]} 35. Bxf3 {[%clk 0:01:01.4]} 35... Ra3 {[%clk 0:01:36.6]} 36.
Nd5 {[%clk 0:01:00.8]} 36... Rxb3 {[%clk 0:01:34.5]} 37. g3 {[%clk 0:00:54.3]}
37... g5 {[%clk 0:01:30.5]} 38. gxf4 {[%clk 0:00:52.5]} 38... gxf4 {[%clk
0:01:30.6]} 39. Be4 {[%clk 0:00:45.2]} 39... d2 {[%clk 0:01:26.6]} 40. Nxe3
{[%clk 0:00:29.3]} 40... fxe3 {[%clk 0:01:26.1]} 41. Kg2 {[%clk 0:00:26.8]}
41... e2 {[%clk 0:01:24.4]} 42. Rxf7 {[%clk 0:00:26.1]} 42... Kxf7 {[%clk
0:01:24.1]} 43. Bd5+ {[%clk 0:00:26.6]} 43... Kf6 {[%clk 0:01:24.6]} 0-1